bitfinex/quotes_SOLUSD_20260117
["timestamp","ask_amount","ask_price","bid_price","bid_amount"]
[1768676824535,2.64245009,144.21,144.18,7.55072288]
[1768676838565,2.67245008,144.2,144.17,7.55104282]
[1768676838748,2.64245009,144.2,144.17,7.55104282]
[1768676839468,2.6124501,144.2,144.17,7.55104282]
[1768676844153,2.6124501,144.2,144.16,0.6330984]
[1768676844154,2.72918949,144.19,144.16,0.6330984]
[1768676844550,2.72918949,144.19,144.16,7.56977954]
[1768676846565,0.66146394,144.18,144.16,7.56977954]
[1768676847165,2.72918949,144.19,144.16,7.56977954]
[1768676847673,0.66146394,144.18,144.16,7.56977954]
[1768676848253,2.72918949,144.19,144.16,7.56977954]
[1768676848980,0.66146394,144.18,144.16,7.56977954]
[1768676849368,2.72918949,144.19,144.16,7.56977954]
[1768676849568,0.66146394,144.18,144.16,7.56977954]
[1768676850370,2.06772555,144.19,144.16,7.56977954]
[1768676850598,2.72918949,144.19,144.16,7.56977954]
[1768676851267,2.73120914,144.19,144.16,7.56977954]
[1768676851476,0.66146394,144.18,144.16,7.56977954]
[1768676851675,2.73120914,144.19,144.16,7.56977954]
[1768676851869,2.0697452,144.19,144.16,7.56977954]
[1768676852069,0.66146394,144.18,144.16,7.56977954]
[1768676852487,2.73120914,144.19,144.16,7.56977954]
[1768676856087,0.66146394,144.19,144.16,7.56977954]
[1768676856269,0.63146395,144.19,144.16,7.56977954]
[1768676859390,0.62454638,144.21,144.17,0.65477565]
[1768676859588,2.69429158,144.23,144.18,0.65477565]
[1768676860277,2.0697452,144.23,144.18,0.65477565]
[1768676860470,0.62454638,144.22,144.18,0.65477565]
[1768676861290,0.62454638,144.22,144.19,7.59006935]
[1768676864283,0.62454638,144.23,144.2,0.65477565]
[1768676866076,0.62454638,144.23,144.2,7.58947881]
[1768676891623,0.62454638,144.23,144.2,7.59477724]
[1768676901025,2.73405019,144.21,144.18,0.66007408]
[1768676903010,2.73405019,144.21,144.18,7.5958379]
[1768676904736,2.0697452,144.2,144.18,7.5958379]
[1768676905033,2.03974521,144.2,144.18,7.5958379]
[1768676905430,0.63028111,144.19,144.18,6.93576382]
[1768676905622,0.60028112,144.19,144.18,6.93576382]
[1768676906037,2.03974521,144.2,144.18,6.93576382]
[1768676907540,2.67002632,144.2,144.18,6.93576382]
[1768676907917,2.0697452,144.22,144.19,0.60706548]
[1768676908412,9.63356751,144.23,144.19,0.60706548]
[1768676910042,0.63028111,144.22,144.19,0.60706548]
[1768676910418,9.63356751,144.23,144.2,0.60706548]
[1768676910927,7.56332195,144.24,144.21,0.60706548]
[1768676911437,0.63028111,144.24,144.21,0.60706548]
[1768676911645,2.70002631,144.24,144.21,0.60706548]
[1768676912023,0.63028111,144.24,144.21,0.60706548]
[1768676913040,0.63028111,144.24,144.21,7.54117469]
[1768676915347,2.06809671,144.25,144.22,0.64950799]
[1768676915545,0.66586561,144.25,144.22,0.64950799]
[1768676918156,0.66586561,144.25,144.22,7.58313551]
[1768676918830,0.76586561,144.26,144.23,0.64950799]
[1768676920147,0.76586561,144.26,144.23,7.58247697]
[1768676925553,0.66586561,144.25,144.23,7.58247697]
[1768676928559,2.06809671,144.24,144.22,6.93385106]
[1768676928751,2.73396232,144.24,144.22,6.93385106]
[1768676929139,2.06809671,144.23,144.22,6.93385106]
[1768676930767,2.06809671,144.23,144.21,7.58364959]
[1768676931147,0.66586561,144.22,144.19,7.58476486]
[1768676931468,2.06809671,144.21,144.19,0.64950799]
[1768676932146,2.06809671,144.21,144.19,7.5847859]
[1768676937365,2.06809671,144.22,144.19,7.5847859]
[1768676942750,2.03809671,144.22,144.19,7.5847859]
[1768676943351,2.06809671,144.22,144.19,7.5847859]
[1768676943567,22.11284736,144.25,144.2,0.6415671]
[1768676943749,2.06809671,144.24,144.2,0.6415671]
[1768676944657,2.06809671,144.24,144.22,0.6415671]
[1768676945251,2.06809671,144.24,144.21,7.57589897]
[1768676946968,6.93284736,144.25,144.22,0.6415671]
[1768676947160,2.06809671,144.24,144.22,0.6415671]
[1768676948148,2.06809671,144.24,144.21,7.57585735]
[1768676954379,0.03017879,144.25,144.22,0.6415671]
[1768676954582,2.06809671,144.25,144.22,0.6415671]
[1768676955078,2.06809671,144.25,144.22,7.57539991]
[1768676955989,2.06809671,144.24,144.22,0.6415671]
[1768676956169,2.06809671,144.23,144.21,0.6415671]
[1768676956355,2.06809671,144.22,144.2,7.57620175]
[1768676956974,2.06809671,144.23,144.21,0.6415671]
[1768676959565,2.11255286,144.23,144.2,0.6415671]
[1768676961083,2.11255286,144.23,144.2,7.57629971]
[1768676961579,2.06809671,144.23,144.2,6.93473261]
[1768676961782,2.06809671,144.23,144.21,0.6415671]
[1768676973274,2.06850938,144.23,144.21,0.6415671]
[1768676981276,2.06850938,144.22,144.2,0.66854095]
[1768676989389,2.16112702,144.23,144.2,0.66854095]
[1768676990909,9.09451947,144.23,144.2,0.66854095]
[1768677000214,0.12373267,144.22,144.19,0.72771427]
[1768677000417,2.06850938,144.21,144.19,0.72771427]
[1768677004222,9.12622994,144.22,144.19,0.72771427]
[1768677006423,2.06850938,144.2,144.18,0.72771427]
[1768677006630,7.06614833,144.21,144.18,0.72771427]
[1768677006631,9.13465771,144.21,144.18,0.72771427]
[1768677007224,2.06850938,144.2,144.18,0.72771427]
[1768677008426,2.03850938,144.2,144.18,0.72771427]
[1768677019825,2.03850938,144.2,144.17,7.66368855]
[1768677021733,7.06614833,144.21,144.17,7.66368855]
[1768677021932,2.06850938,144.2,144.18,0.72264096]
[1768677022935,2.06850938,144.2,144.18,7.65839471]
[1768677024434,9.13465771,144.21,144.18,7.65839471]
[1768677028839,2.20026828,144.21,144.18,7.65839471]
[1768677030034,2.06850938,144.2,144.18,7.65839471]
[1768677031438,0.1317589,144.21,144.18,7.65839471]
[1768677031629,2.06850938,144.21,144.18,0.72264096]
[1768677032941,2.06850938,144.21,144.18,7.658387]
[1768677033343,2.23270456,144.21,144.18,7.658387]
[1768677042057,2.06911794,144.21,144.19,0.70194695]
[1768677043758,2.06911794,144.2,144.19,0.70194695]
[1768677054639,2.06911794,144.2,144.18,6.9356238]
[1768677054943,2.06911794,144.2,144.18,0.71206546]
[1768677062065,2.06911794,144.2,144.18,7.64778342]
[1768677069795,2.25133857,144.21,144.18,7.64778342]
[1768677073361,2.06911794,144.21,144.19,0.71206546]
[1768677076779,7.12782629,144.22,144.19,0.71206546]
[1768677088396,2.06911794,144.21,144.19,0.71206546]
[1768677093303,2.06911638,144.21,144.19,0.71206546]
[1768677096108,7.12782629,144.22,144.19,0.71206546]
[1768677096311,2.06911638,144.21,144.19,7.64717601]
[1768677099412,7.12760242,144.22,144.19,7.64717601]
[1768677099594,2.06911638,144.21,144.19,7.64717601]
[1768677100207,2.06911638,144.22,144.2,0.77002126]
[1768677101284,2.06911638,144.21,144.2,0.77002126]
[1768677103923,2.06911638,144.22,144.2,0.77002126]
[1768677107226,7.14376673,144.23,144.2,0.77002126]
[1768677107402,2.06911638,144.22,144.2,0.77002126]
[1768677107603,5.9902002,144.21,144.16,6.93672174]
[1768677107802,2.06911638,144.19,144.16,6.93672174]
[1768677108515,2.06911638,144.19,144.15,6.93704]
[1768677108716,2.06911638,144.19,144.13,122.9144374]
[1768677108717,2.06911638,144.19,144.13,19.4144374]
[1768677109520,2.06911638,144.19,144.17,0.77002126]
[1768677110916,2.06911638,144.18,144.17,0.77002126]
[1768677111220,2.03911638,144.18,144.17,0.77002126]
[1768677113123,2.00911635,144.18,144.17,0.77002126]
[1768677113721,1.97911635,144.18,144.17,0.77002126]
[1768677113902,2.06911638,144.19,144.17,0.77002126]
[1768677114525,17.34532102,144.21,144.17,0.77002126]
[1768677114526,9.00353708,144.21,144.18,0.75601195]
[1768677115315,6.9344207,144.21,144.18,0.75601195]
[1768677120647,6.93401087,144.22,144.18,0.75601195]
[1768677121011,7.72859379,144.22,144.18,0.75601195]
[1768677133248,9.79771017,144.22,144.18,0.75601195]
[1768677139749,7.72859379,144.22,144.18,0.75601195]
[1768677139926,9.79771017,144.22,144.18,0.75601195]
[1768677149577,7.72859379,144.22,144.18,0.75601195]
[1768677149964,9.79771017,144.22,144.18,0.75601195]
[1768677155311,9.79745778,144.22,144.18,0.75601195]
[1768677158803,27.13208543,144.22,144.18,0.75601195]
[1768677159307,2.06886399,144.21,144.18,0.75601195]
[1768677162523,25.06322144,144.22,144.18,0.75601195]
[1768677162677,2.06886399,144.21,144.18,0.75601195]
[1768677163880,2.06886399,144.2,144.18,0.75601195]
[1768677165298,9.00361727,144.21,144.18,0.75601195]
[1768677180213,6.93475328,144.21,144.18,0.75601195]
[1768677180424,9.00361727,144.21,144.18,0.75601195]
[1768677182124,9.84043978,144.21,144.18,0.75601195]
[1768677188930,7.77157579,144.21,144.18,0.75601195]
[1768677189123,9.84043978,144.21,144.18,0.75601195]
[1768677215352,7.77157579,144.21,144.18,0.75601195]
[1768677222663,7.76085577,144.22,144.19,0.84179501]
[1768677222843,9.83000172,144.22,144.19,0.84179501]
[1768677223939,7.76085577,144.22,144.19,0.84179501]
[1768677226272,9.83000172,144.22,144.19,0.84179501]
[1768677240576,7.76085577,144.22,144.19,0.84179501]
[1768677240779,9.83000172,144.22,144.19,0.84179501]
[1768677244386,9.8275988,144.22,144.19,0.84179501]
[1768677246386,7.75845285,144.22,144.19,0.84179501]
[1768677246690,9.8275988,144.22,144.19,0.84179501]
[1768677248200,6.93398342,144.22,144.19,0.84179501]
[1768677252492,7.75845285,144.22,144.19,0.84179501]
[1768677253308,9.8275988,144.22,144.19,0.84179501]
[1768677254806,7.75845285,144.22,144.19,0.84179501]
[1768677255003,9.8275988,144.22,144.19,0.84179501]
[1768677257803,7.75845285,144.22,144.19,0.84179501]
[1768677267618,6.93398342,144.22,144.19,0.84179501]
[1768677268414,13.86914347,144.23,144.2,0.86298939]
[1768677268595,7.77397471,144.24,144.21,0.86298939]
[1768677270321,9.84312066,144.24,144.21,0.86298939]
[1768677271217,0.84097143,144.21,144.18,0.86298939]
[1768677271517,1e-08,144.21,144.18,0.86298939]
[1768677273417,1e-08,144.21,144.18,7.7987062]
[1768677292232,2.40689815,144.22,144.19,0.82797464]
[1768677294338,2.40689815,144.22,144.19,7.76324017]
[1768677298334,0.34718335,144.21,144.17,7.76377777]
[1768677298523,2.06859577,144.19,144.15,0.82797464]
[1768677298722,2.06859577,144.18,144.15,7.76514684]
[1768677300337,2.06859577,144.17,144.15,0.82797464]
[1768677300544,2.06859577,144.16,144.12,0.82797464]
[1768677300844,2.03859578,144.14,144.12,0.82797464]
[1768677301015,2.06859577,144.14,144.12,0.82797464]
[1768677302330,2.06859577,144.14,144.11,6.93910794]
[1768677302331,2.06859577,144.14,144.11,7.76708258]
[1768677302650,9.00595345,144.15,144.11,7.76708258]
[1768677303944,6.93735768,144.15,144.11,7.76708258]
[1768677304947,9.00595345,144.15,144.11,7.76708258]
[1768677305444,2.06859577,144.15,144.11,7.76708258]
[1768677305849,27.75359362,144.16,144.11,7.76708258]
[1768677306050,29.82218939,144.16,144.11,7.76708258]
[1768677306230,9.00548052,144.16,144.12,0.82797464]
[1768677307131,9.00548052,144.16,144.12,7.76645412]
[1768677307944,0.02111808,144.15,144.12,7.76645412]
[1768677319969,0.04345424,144.16,144.13,0.82797464]
[1768677320572,6.98193372,144.16,144.13,0.82797464]
[1768677325081,15.98732523,144.16,144.13,0.82797464]
[1768677325777,0.05352467,144.15,144.12,7.86424392]
[1768677325967,0.05352467,144.15,144.12,0.92576444]
[1768677326168,2.12212044,144.15,144.12,0.92576444]
[1768677327864,0.05352467,144.15,144.12,0.92576444]
[1768677328483,6.99078407,144.15,144.12,0.92576444]
[1768677330376,6.9372594,144.15,144.1,6.93950411]
[1768677330681,2.06859577,144.13,144.1,7.86526855]
[1768677334295,9.00678633,144.13,144.1,7.86526855]
[1768677335499,9.00678633,144.13,144.1,0.92576444]
[1768677337400,2.07182119,144.12,144.09,0.2]
[1768677337899,2.07182119,144.11,144.09,0.2]
[1768677339503,9.01081128,144.12,144.09,0.2]
[1768677339802,2.07182119,144.11,144.09,0.2]
[1768677340390,9.01081128,144.12,144.09,1.11162177]
[1768677340578,9.01081128,144.12,144.09,0.2]
[1768677341706,0.02023246,144.11,144.09,0.2]
[1768677342095,0.02023246,144.09,144.07,0.2]
[1768677342400,2.09205365,144.1,144.07,1.11162177]
[1768677342576,2.07182119,144.1,144.07,1.11162177]
[1768677342778,9.03131421,144.11,144.07,1.11162177]
[1768677343800,6.95949302,144.11,144.07,1.11162177]
[1768677349202,6.95949302,144.11,144.08,0.91162177]
[1768677350312,0.02023246,144.11,144.08,0.91162177]
[1768677350519,24.24113234,144.12,144.08,0.91162177]
[1768677351012,6.96931115,144.12,144.08,6.94030162]
[1768677351314,31.38276632,144.13,144.09,0.91162177]
[1768677351493,15.2,144.14,144.1,0.91162177]
[1768677351690,6.96900424,144.15,144.08,24.29177302]
[1768677351691,0.03170712,144.15,144.08,24.29177302]
[1768677351913,0.03170712,144.15,144.12,0.93976117]
[1768677352106,0.03170712,144.15,144.12,0.87976119]
[1768677353421,2.10352831,144.15,144.12,0.87976119]
[1768677355920,9.04088183,144.15,144.12,0.87976119]
[1768677357018,0.03170712,144.15,144.12,0.87976119]
[1768677357328,2.10352831,144.15,144.12,0.87976119]
[1768677357919,0.03170712,144.15,144.12,0.87976119]
[1768677364232,13.87532775,144.17,144.13,0.93976117]
[1768677364440,24.38249333,144.19,144.13,2.07182119]
[1768677364613,26.45431452,144.19,144.14,2.07182119]
[1768677365630,26.45431452,144.19,144.14,9.00938829]
[1768677366423,26.45431452,144.19,144.15,0.93976117]
[1768677370018,24.38249333,144.19,144.15,0.93976117]
[1768677370335,26.45431452,144.19,144.15,0.93976117]
[1768677375536,26.45431452,144.19,144.15,0.87976121]
[1768677382561,41.65431452,144.19,144.15,0.87976121]
[1768677387460,26.45431452,144.19,144.15,0.87976121]
[1768677389741,41.65431452,144.19,144.15,0.87976121]
[1768677398175,6.93571461,144.19,144.16,0.89468172]
[1768677398464,22.13571461,144.19,144.16,0.89468172]
[1768677398872,6.93571461,144.19,144.16,0.89468172]
[1768677399575,7.17380283,144.19,144.16,0.89468172]
[1768677409484,6.93571461,144.19,144.16,0.89468172]
[1768677419274,7.18246418,144.19,144.16,0.89468172]
[1768677419989,0.96752957,144.18,144.11,17.34783175]
[1768677420189,0.96752957,144.18,144.13,9.00713431]
[1768677420670,0.96752957,144.18,144.14,6.93761339]
[1768677421791,7.90342882,144.18,144.14,6.93761339]
[1768677422080,0.96752957,144.17,144.14,6.93761339]
[1768677422795,0.96752957,144.17,144.14,7.87975406]
[1768677423992,9.9728091,144.18,144.15,0.94214067]
[1768677433804,9.9728091,144.18,144.14,0.94214067]
[1768677433805,3.03690985,144.17,144.14,0.94214067]
[1768677435707,9.97318496,144.17,144.14,0.94214067]
[1768677442522,9.97318496,144.17,144.13,6.93801685]
[1768677442523,0.99987241,144.16,144.13,0.99508711]
[1768677442729,0.99987241,144.15,144.12,7.93374933]
[1768677445139,0.99987241,144.15,144.12,6.93866222]
[1768677445349,0.99987241,144.15,144.12,7.93374933]
[1768677446440,7.93714673,144.15,144.12,0.99508711]
[1768677446640,10.00652701,144.15,144.12,0.99508711]
[1768677461425,9.00794272,144.15,144.12,0.99508711]
[1768677462055,6.93727432,144.15,144.12,0.99508711]
[1768677464547,22.13692205,144.16,144.13,0.95482825]
[1768677464755,6.93692205,144.16,144.13,0.95482825]
[1768677469258,2.0706684,144.18,144.14,0.95482825]
[1768677469446,3.07666566,144.16,144.12,0.95482825]
[1768677472353,10.01367398,144.16,144.12,0.95482825]
[1768677474066,7.94300558,144.16,144.12,0.95482825]
[1768677474964,0.9709552,144.15,144.12,0.95482825]
[1768677479369,0.94095521,144.15,144.13,0.94291197]
[1768677486175,0.9709552,144.15,144.12,6.9386376]
[1768677486569,0.9709552,144.15,144.12,7.88154957]
[1768677490976,6.93700832,144.16,144.13,0.94291197]
[1768677491192,3.0416236,144.17,144.14,0.94291197]
[1768677491193,9.97808826,144.17,144.14,0.94291197]
[1768677491367,0.9709552,144.18,144.14,0.94291197]
[1768677491671,0.9709552,144.18,144.15,0.94291197]
[1768677492483,7.9067621,144.18,144.15,0.94291197]
[1768677493786,9.9774305,144.18,144.15,0.94291197]
[1768677502094,9.0059621,144.19,144.15,0.94291197]
[1768677502296,9.92788905,144.19,144.15,0.94291197]
[1768677507383,9.00658557,144.18,144.15,0.94291197]
[1768677510403,6.93591717,144.18,144.15,0.94291197]
[1768677512703,7.85784412,144.18,144.15,0.94291197]
[1768677518916,6.93591717,144.18,144.15,0.94291197]
[1768677529429,9.90168533,144.19,144.16,0.86085809]
[1768677529629,9.90168533,144.19,144.16,0.80085809]
[1768677541647,9.90168533,144.19,144.15,0.89422246]
[1768677541648,2.92888475,144.18,144.15,0.89422246]
[1768677543145,9.86492314,144.18,144.15,0.89422246]
[1768677548122,9.00571969,144.18,144.15,0.89422246]
[1768677556485,6.93603839,144.18,144.15,0.89422246]
[1768677561002,6.9352937,144.19,144.15,0.89422246]
[1768677561204,6.9352937,144.19,144.16,0.89422246]
[1768677563006,9.004975,144.19,144.16,0.89422246]
[1768677563182,9.83752515,144.19,144.16,0.89422246]
[1768677563382,9.004975,144.19,144.16,0.89422246]
[1768677568883,9.83752515,144.19,144.16,0.89422246]
[1768677571004,2.0696813,144.18,144.16,0.89422246]
[1768677571195,2.90223145,144.18,144.15,0.8900352]
[1768677572007,9.83808815,144.18,144.15,0.8900352]
[1768677574621,9.005538,144.18,144.15,0.8900352]
[1768677578420,6.9358567,144.18,144.15,0.8900352]
[1768677580915,9.005538,144.18,144.15,0.8900352]
[1768677581100,0.8513454,144.17,144.15,0.8900352]
[1768677583724,0.8513454,144.16,144.13,0.84158062]
[1768677584102,9.85756992,144.17,144.13,0.84158062]
[1768677584629,19.41718704,144.16,144.13,0.84158062]
[1768677587229,27.20529477,144.16,144.13,0.84158062]
[1768677587436,0.8513454,144.15,144.13,0.84158062]
[1768677587813,18.10127813,144.15,144.13,0.84158062]
[1768677588524,25.03860139,144.15,144.13,0.84158062]
[1768677588732,25.03860139,144.15,144.11,0.84158062]
[1768677594032,27.10853412,144.15,144.11,0.84158062]
[1768677594237,25.03860139,144.15,144.11,0.84158062]
[1768677598238,25.03860139,144.15,144.12,0.85710514]
[1768677600338,7.78866866,144.15,144.12,0.85710514]
[1768677600639,6.93902359,144.14,144.12,0.85710514]
[1768677600837,7.78866866,144.15,144.12,0.85710514]
[1768677601631,14.72769225,144.15,144.12,0.85710514]
[1768677602132,7.78866866,144.15,144.12,0.85710514]
[1768677602332,27.20102738,144.15,144.12,0.85710514]
[1768677602657,7.78866866,144.15,144.12,0.85710514]
[1768677603024,14.72769225,144.15,144.12,0.85710514]
[1768677603549,13.87634685,144.15,144.12,0.85710514]
[1768677603928,6.93732326,144.15,144.12,0.85710514]
[1768677611955,0.82999155,144.14,144.11,7.79612873]
[1768677612341,7.76731481,144.15,144.12,0.85710514]
[1768677617357,14.7063384,144.15,144.12,0.85710514]
[1768677618359,0.82999155,144.14,144.11,6.93902359]
[1768677618657,0.82999155,144.14,144.11,7.79612873]
[1768677619758,13.87634685,144.15,144.12,0.85710514]
[1768677620557,14.7063384,144.15,144.12,0.85710514]
[1768677628280,7.76731481,144.15,144.12,0.85710514]
[1768677631277,2.06993273,144.13,144.08,0.77138085]
[1768677631482,17.26993273,144.15,144.11,0.77138085]
[1768677631686,15.2,144.15,144.11,0.77138085]
[1768677632488,32.7520106,144.15,144.11,0.77138085]
[1768677633396,6.93769945,144.14,144.11,0.77138085]
[1768677635797,9.00763218,144.14,144.11,0.77138085]
[1768677636596,6.93769945,144.14,144.11,0.77138085]
[1768677636804,9.00763218,144.14,144.11,0.77138085]
[1768677639604,6.93769945,144.14,144.11,0.77138085]
[1768677639778,9.00763218,144.14,144.11,0.77138085]
[1768677642804,6.93769945,144.14,144.11,0.77138085]
[1768677642983,24.20731456,144.15,144.11,0.77138085]
[1768677643611,9.00731456,144.15,144.11,0.77138085]
[1768677644513,9.00731456,144.15,144.12,0.75746069]
[1768677645315,9.00816466,144.15,144.12,0.75746069]
[1768677647221,5.34204605,144.15,144.12,0.75746069]
[1768677647509,2.80479986,144.16,144.12,0.75746069]
[1768677647688,5.19939769,144.15,144.12,0.75746069]
[1768677647889,2.80479986,144.16,144.12,0.75746069]
[1768677648089,5.19936746,144.15,144.12,0.75746069]
[1768677648289,2.80479986,144.16,144.12,0.75746069]
[1768677648495,12.13685927,144.15,144.12,0.75746069]
[1768677648696,6.93738183,144.15,144.12,0.75746069]
[1768677656935,9.74167321,144.16,144.12,7.69599979]
[1768677657140,5.20041712,144.15,144.12,7.69599979]
[1768677657437,9.74167321,144.16,144.12,7.69599979]
[1768677657738,5.20040208,144.15,144.12,7.69599979]
[1768677657923,9.74167321,144.16,144.12,7.69599979]
[1768677658123,5.20040649,144.15,144.12,7.69599979]
[1768677658323,9.74167321,144.16,144.12,7.69599979]
[1768677658525,5.95584492,144.15,144.12,7.69599979]
[1768677658730,0.7556477,144.15,144.12,7.69599979]
[1768677669139,9.76330388,144.16,144.13,0.76669955]
[1768677672363,6.93687335,144.16,144.13,0.76669955]
[1768677672954,0.7556477,144.16,144.13,7.70485217]
[1768677673161,9.7628593,144.17,144.14,0.76669955]
[1768677673338,9.7628593,144.17,144.14,0.70669955]
[1768677675775,6.93577472,144.18,144.14,0.70669955]
[1768677676061,9.00655755,144.18,144.14,0.70669955]
[1768677676564,9.76220525,144.18,144.14,0.70669955]
[1768677680273,0.7556477,144.16,144.12,7.70519099]
[1768677680455,0.7556477,144.15,144.12,7.70519099]
[1768677680962,0.7556477,144.14,144.12,6.93849144]
[1768677681563,2.82643053,144.14,144.09,18.11658074]
[1768677681770,0.7556477,144.13,144.09,18.11658074]
[1768677681983,0.7556477,144.13,144.1,6.93944309]
[1768677683371,0.7556477,144.13,144.1,7.75563754]
[1768677696080,0.72564771,144.13,144.1,7.75563754]
[1768677696864,6.93794858,144.14,144.11,0.81419517]
[1768677697066,2.07078283,144.17,144.12,0.81419517]
[1768677698072,6.93689281,144.16,144.12,7.75277314]
[1768677698257,0.80758267,144.15,144.12,7.75277314]
[1768677699387,7.74447548,144.16,144.13,0.81419517]
[1768677703892,9.81525831,144.16,144.13,0.81419517]
[1768677707301,9.81482349,144.16,144.13,0.81419517]
[1768677707604,2.87793068,144.14,144.11,0.81419517]
[1768677707802,2.07034801,144.14,144.11,0.81419517]
[1768677707979,0.80758267,144.13,144.09,0.81419517]
[1768677708579,0.80758267,144.13,144.1,6.93942047]
[1768677709997,0.80758267,144.13,144.1,7.75361564]
[1768677722305,0.870705,144.12,144.09,6.93994964]
[1768677722606,0.870705,144.11,144.08,6.94046112]
[1768677722809,0.870705,144.11,144.08,7.77512478]
[1768677723309,0.870705,144.11,144.09,6.93998826]
[1768677723714,0.84070501,144.11,144.09,6.93998826]
[1768677731717,0.84070501,144.11,144.08,0.83466366]
[1768677732320,0.84070501,144.11,144.08,7.77508272]
[1768677735315,2.91105302,144.11,144.08,7.77508272]
[1768677736023,0.84070501,144.11,144.08,7.77508272]
[1768677741406,2.94105301,144.12,144.09,7.77439268]
[1768677741926,0.870705,144.12,144.09,7.77439268]
[1768677742224,0.89454756,144.1,144.07,1.04562912]
[1768677742414,9.90366467,144.12,144.09,0.84562912]
[1768677742614,0.89454756,144.13,144.09,0.84562912]
[1768677743121,2.96489557,144.13,144.09,0.84562912]
[1768677743621,0.89454756,144.13,144.09,7.78572092]
[1768677743801,2.96489557,144.13,144.09,7.78572092]
[1768677744002,0.89454756,144.13,144.09,7.78572092]
[1768677744200,2.96489557,144.13,144.1,0.84562912]
[1768677745224,0.89454756,144.13,144.1,0.84562912]
[1768677745406,2.96489557,144.13,144.1,0.84562912]
[1768677747742,9.90309913,144.13,144.1,0.84562912]
[1768677748244,7.83275112,144.13,144.1,0.84562912]
[1768677749747,0.89454756,144.14,144.1,0.84562912]
[1768677750042,0.89454756,144.14,144.11,0.84562912]
[1768677753034,2.91596718,144.11,144.07,1.04562912]
[1768677754640,7.78293736,144.1,144.07,1.04562912]
[1768677757153,6.93962526,144.1,144.07,1.04562912]
[1768677757654,6.90962527,144.1,144.07,1.04562912]
[1768677759958,9.85284645,144.11,144.08,0.86751091]
[1768677764558,0.8433121,144.11,144.08,7.80792233]
[1768677764937,0.8433121,144.11,144.08,0.86751091]
[1768677764938,9.85284088,144.11,144.08,0.86751091]
[1768677766254,7.78249287,144.11,144.08,0.86751091]
[1768677777070,0.90513297,144.12,144.09,0.86906759]
[1768677777669,7.84382154,144.12,144.09,0.86906759]
[1768677778392,7.14089683,144.14,144.09,0.86906759]
[1768677778393,14.07906773,144.14,144.1,0.86906759]
[1768677778555,7.84330387,144.14,144.1,0.86906759]
[1768677779270,9.91521279,144.14,144.1,0.86906759]
[1768677779473,0.90513297,144.13,144.1,0.86906759]
[1768677779673,7.84391191,144.12,144.09,0.86906759]
[1768677781779,0.90513297,144.12,144.09,0.86906759]
[1768677782769,0.90513297,144.12,144.09,7.80899501]
[1768677783081,0.90513297,144.13,144.1,0.86906759]
[1768677785683,0.90513297,144.14,144.11,7.80821129]
[1768677787005,0.90513297,144.15,144.11,0.86906759]
[1768677789011,0.90513297,144.15,144.11,7.80803974]
[1768677789158,0.90513297,144.14,144.11,7.80803974]
[1768677800894,9.91437837,144.15,144.12,0.86906759]
[1768677801082,9.91437837,144.15,144.12,0.80906759]
[1768677802897,0.95634772,144.14,144.12,0.74906759]
[1768677803483,9.96559312,144.15,144.12,0.74906759]
[1768677805806,7.89260352,144.17,144.13,0.9417023]
[1768677806304,0.95634772,144.17,144.13,0.9417023]
[1768677807272,0.95634772,144.17,144.14,7.87940175]
[1768677807486,9.00780812,144.18,144.14,7.87940175]
[1768677807487,7.89224692,144.18,144.15,0.9417023]
[1768677809787,0.95634772,144.18,144.15,0.9417023]
[1768677809996,0.95634772,144.18,144.15,7.87861435]
[1768677817706,7.96151078,144.19,144.16,0.99696663]
[1768677818002,1.02602997,144.18,144.15,0.99696663]
[1768677818885,1.02602997,144.18,144.15,7.93418022]
[1768677831929,7.96182744,144.18,144.15,0.99696663]
[1768677837022,10.03143332,144.18,144.15,0.99696663]
[1768677843731,0.97898205,144.15,144.12,1.00645892]
[1768677844030,2.06960588,144.15,144.12,1.00645892]
[1768677845014,2.06960588,144.16,144.12,1.00645892]
[1768677845937,9.00676561,144.16,144.12,6.93865284]
[1768677846117,9.00676561,144.16,144.13,1.00645892]
[1768677848432,2.06960588,144.15,144.13,1.00645892]
[1768677853836,9.00683336,144.15,144.13,1.00645892]
[1768677857342,9.30541202,144.16,144.13,1.00645892]
[1768677857941,9.34154059,144.17,144.14,1.00645892]
[1768677887279,7.27193471,144.17,144.14,1.00645892]
[1768677887457,9.34154059,144.17,144.14,1.00645892]
[1768677888556,12.13728138,144.16,144.14,1.00645892]
[1768677888870,6.9371309,144.16,144.14,1.00645892]
[1768677901488,2.07041024,144.18,144.14,1.00645892]
[1768677902272,2.53108648,144.17,144.14,1.00645892]
[1768677903182,2.07041024,144.17,144.15,1.12867853]
[1768677903357,2.07041024,144.17,144.15,1.06867853]
[1768677905380,9.0066834,144.17,144.15,1.06867853]
[1768677915503,10.13593418,144.17,144.12,15.2]
[1768677915676,2.07041024,144.16,144.12,15.2]
[1768677915878,2.07041024,144.16,144.11,24.20917549]
[1768677917502,9.00746434,144.16,144.12,1.12867853]
[1768677918189,6.9370541,144.16,144.12,1.12867853]
[1768677918902,8.06630488,144.16,144.12,1.12867853]
[1768677919602,8.06630488,144.16,144.12,6.93864928]
[1768677919805,8.06630488,144.16,144.13,1.12867853]
[1768677920802,6.9370541,144.16,144.13,1.12867853]